[Event "*** Titled Tuesday Blitz"]
[Site "Chess.com"]
[Date "2021.03.02"]
[Round "6"]
[White "LionTheLeon_06"]
[Black "BigAl"]
[Result "1-0"]
[WhiteElo "2707"]
[BlackElo "2522"]
[TimeControl "180+1"]
[EndTime "11:07:36 PST"]
[Termination "LionTheLeon_06 won by resignation"]

1. g3 {[%clk 0:03:00.9]} 1... g6 {[%clk 0:02:59.8]} 2. Bg2 {[%clk 0:03:00.6]}
2... Bg7 {[%clk 0:03:00.7]} 3. c4 {[%clk 0:03:00.9]} 3... Nf6 {[%clk 0:03:00.9]}
4. Nc3 {[%clk 0:03:00.7]} 4... O-O {[%clk 0:03:01.8]} 5. Nf3 {[%clk 0:03:00.6]}
5... d6 {[%clk 0:03:02.2]} 6. O-O {[%clk 0:03:00.7]} 6... e5 {[%clk 0:03:02.9]}
7. d3 {[%clk 0:03:00.9]} 7... h6 {[%clk 0:03:02]} 8. Rb1 {[%clk 0:03:00]} 8...
Nc6 {[%clk 0:03:02.6]} 9. b4 {[%clk 0:02:59]} 9... Bg4 {[%clk 0:02:58.5]} 10. b5
{[%clk 0:02:58.2]} 10... Ne7 {[%clk 0:02:58.7]} 11. a4 {[%clk 0:02:55.6]} 11...
Qd7 {[%clk 0:02:58.6]} 12. Re1 {[%clk 0:02:54.8]} 12... Bh3 {[%clk 0:02:58.6]}
13. Bh1 {[%clk 0:02:54.7]} 13... Nh7 {[%clk 0:02:58.4]} 14. a5 {[%clk
0:02:50.2]} 14... Rab8 {[%clk 0:02:58.2]} 15. Nd2 {[%clk 0:02:46.1]} 15... f5
{[%clk 0:02:48.6]} 16. Ba3 {[%clk 0:02:38.1]} 16... b6 {[%clk 0:02:43.4]} 17.
axb6 {[%clk 0:02:32.6]} 17... axb6 {[%clk 0:02:43.2]} 18. Bb2 {[%clk 0:02:32.8]}
18... Kh8 {[%clk 0:02:33.7]} 19. Ra1 {[%clk 0:02:32.2]} 19... Rf7 {[%clk
0:02:29.1]} 20. Ra7 {[%clk 0:02:31.6]} 20... Rbf8 {[%clk 0:02:27.3]} 21. Nd5
{[%clk 0:02:26.4]} 21... Nxd5 {[%clk 0:02:26.9]} 22. Bxd5 {[%clk 0:02:26.3]}
22... Re7 {[%clk 0:02:27.1]} 23. e3 {[%clk 0:02:14.7]} 23... Ng5 {[%clk
0:02:21.1]} 24. Qe2 {[%clk 0:02:08.9]} 24... e4 {[%clk 0:02:06.9]} 25. Bxg7+
{[%clk 0:01:53.3]} 25... Kxg7 {[%clk 0:02:05.4]} 26. d4 {[%clk 0:01:45.4]} 26...
Bg4 {[%clk 0:02:04.4]} 27. Qf1 {[%clk 0:01:45.3]} 27... Bh3 {[%clk 0:01:53.4]}
28. Qe2 {[%clk 0:01:43.6]} 28... Bg4 {[%clk 0:01:53.7]} 29. Qf1 {[%clk
0:01:22.5]} 29... h5 {[%clk 0:01:41.2]} 30. f4 {[%clk 0:00:47]} 30... Nh3+
{[%clk 0:01:30.5]} 31. Kg2 {[%clk 0:00:45.1]} 31... h4 {[%clk 0:01:27.4]} 32.
Rea1 {[%clk 0:00:39.4]} 32... g5 {[%clk 0:01:16.6]} 33. Ra8 {[%clk 0:00:36.7]}
33... Rxa8 {[%clk 0:01:10.6]} 34. Rxa8 {[%clk 0:00:35.9]} 34... hxg3 {[%clk
0:01:07.5]} 35. hxg3 {[%clk 0:00:35.5]} 35... gxf4 {[%clk 0:00:56.4]} 36. gxf4
{[%clk 0:00:35.2]} 36... Kg6 {[%clk 0:00:45.8]} 37. Qe1 {[%clk 0:00:33.8]} 37...
Rh7 {[%clk 0:00:45.2]} 38. Rg8+ {[%clk 0:00:31.6]} 38... Kf6 {[%clk 0:00:43.5]}
39. Qa1 {[%clk 0:00:26.3]} 39... Rg7 {[%clk 0:00:39.6]} 40. Qa8 {[%clk
0:00:20.4]} 40... Rxg8 {[%clk 0:00:22.5]} 41. Qxg8 {[%clk 0:00:21.3]} 41... Qg7
{[%clk 0:00:21.9]} 42. Qxg7+ {[%clk 0:00:21.3]} 42... Kxg7 {[%clk 0:00:22.2]}
43. c5 {[%clk 0:00:18.9]} 43... bxc5 {[%clk 0:00:19.9]} 44. dxc5 {[%clk
0:00:19.8]} 44... dxc5 {[%clk 0:00:20]} 45. Nb3 {[%clk 0:00:20]} 45... Bd1
{[%clk 0:00:17.1]} 46. Kxh3 {[%clk 0:00:17.9]} 46... Be2 {[%clk 0:00:12.3]} 47.
Nxc5 {[%clk 0:00:17.9]} 47... Bxb5 {[%clk 0:00:12.7]} 48. Ne6+ {[%clk
0:00:18.1]} 48... Kf6 {[%clk 0:00:13.3]} 49. Nxc7 {[%clk 0:00:18.3]} 49... Ke7
{[%clk 0:00:13.6]} 50. Nxb5 {[%clk 0:00:17.8]} 50... Kf6 {[%clk 0:00:11.1]} 51.
Kh4 {[%clk 0:00:18.1]} 51... Kg6 {[%clk 0:00:10.2]} 52. Nd4 {[%clk 0:00:18.3]}
1-0

[Event "*** Titled Tuesday Blitz"]
[Site "Chess.com"]
[Date "2021.03.02"]
[Round "6"]
[White "organdzievhren"]
[Black "Ladislav1969"]
[Result "1-0"]
[WhiteElo "2437"]
[BlackElo "2302"]
[TimeControl "180+1"]
[EndTime "11:07:36 PST"]
[Termination "organdzievhren won by resignation"]

1. e4 {[%clk 0:03:00.9]} 1... c5 {[%clk 0:02:59.9]} 2. Nf3 {[%clk 0:03:01]} 2...
e6 {[%clk 0:03:00.6]} 3. c3 {[%clk 0:03:00.3]} 3... Nf6 {[%clk 0:02:59.1]} 4.
Bd3 {[%clk 0:03:00]} 4... Nc6 {[%clk 0:02:57.3]} 5. Bc2 {[%clk 0:02:59.9]} 5...
Qc7 {[%clk 0:02:48.2]} 6. O-O {[%clk 0:02:56.1]} 6... d5 {[%clk 0:02:44.4]} 7.
d3 {[%clk 0:02:53.1]} 7... Be7 {[%clk 0:02:38.8]} 8. Re1 {[%clk 0:02:52.5]} 8...
dxe4 {[%clk 0:02:26.3]} 9. dxe4 {[%clk 0:02:52.3]} 9... e5 {[%clk 0:02:27]} 10.
Bg5 {[%clk 0:02:43.9]} 10... h6 {[%clk 0:02:24.1]} 11. Bxf6 {[%clk 0:02:43.1]}
11... Bxf6 {[%clk 0:02:23.8]} 12. Nbd2 {[%clk 0:02:42.4]} 12... O-O {[%clk
0:02:22]} 13. Nc4 {[%clk 0:02:41.5]} 13... Be6 {[%clk 0:02:17.5]} 14. Ne3 {[%clk
0:02:41.5]} 14... Rad8 {[%clk 0:02:17.1]} 15. Qe2 {[%clk 0:02:41]} 15... Ne7
{[%clk 0:02:08.7]} 16. Bb3 {[%clk 0:02:33.4]} 16... Qb6 {[%clk 0:01:44.3]} 17.
Nc4 {[%clk 0:02:19.5]} 17... Bxc4 {[%clk 0:01:37.4]} 18. Qxc4 {[%clk 0:02:11.1]}
18... Qc6 {[%clk 0:01:28.7]} 19. Ba4 {[%clk 0:02:01.4]} 19... Qb6 {[%clk
0:01:25.2]} 20. Bb3 {[%clk 0:01:56.6]} 20... Qc6 {[%clk 0:01:25.1]} 21. a4
{[%clk 0:01:56.5]} 21... b6 {[%clk 0:01:19.6]} 22. Rad1 {[%clk 0:01:54.9]} 22...
Ng6 {[%clk 0:01:02.5]} 23. Rxd8 {[%clk 0:01:49]} 23... Bxd8 {[%clk 0:01:03]} 24.
Rd1 {[%clk 0:01:46.4]} 24... Nf4 {[%clk 0:00:58.3]} 25. Nxe5 {[%clk 0:01:29.3]}
25... Qf6 {[%clk 0:00:53.7]} 26. Nxf7 {[%clk 0:01:20.8]} 26... Kh7 {[%clk
0:00:53.6]} 27. Rd6 {[%clk 0:00:54.4]} 27... Qh4 {[%clk 0:00:24.2]} 28. e5
{[%clk 0:00:35.6]} 28... Bc7 {[%clk 0:00:20.6]} 29. g3 {[%clk 0:00:23.9]} 29...
Nh3+ {[%clk 0:00:16.5]} 30. Kg2 {[%clk 0:00:21.9]} 30... Qxc4 {[%clk 0:00:16.6]}
31. Bxc4 {[%clk 0:00:21.6]} 31... Bxd6 {[%clk 0:00:16.1]} 32. exd6 {[%clk
0:00:20.5]} 32... Ng5 {[%clk 0:00:16.2]} 33. d7 {[%clk 0:00:20.4]} 33... Nxf7
{[%clk 0:00:15.1]} 34. Bxf7 {[%clk 0:00:19.8]} 34... Rd8 {[%clk 0:00:14.7]} 35.
Be8 {[%clk 0:00:17.7]} 35... Kg8 {[%clk 0:00:14.8]} 36. Kf3 {[%clk 0:00:18]}
36... Kf8 {[%clk 0:00:15]} 37. Ke4 {[%clk 0:00:18.4]} 37... Ke7 {[%clk
0:00:15.1]} 38. Kd5 {[%clk 0:00:18.1]} 38... Rb8 {[%clk 0:00:12.8]} 39. Kc6
{[%clk 0:00:17.6]} 39... Kd8 {[%clk 0:00:11.5]} 40. b4 {[%clk 0:00:15.7]} 40...
cxb4 {[%clk 0:00:10.3]} 41. cxb4 {[%clk 0:00:16.1]} 41... Rb7 {[%clk 0:00:11]}
42. Kxb7 {[%clk 0:00:15.7]} 42... a5 {[%clk 0:00:09.6]} 43. bxa5 {[%clk
0:00:14.9]} 43... bxa5 {[%clk 0:00:09.5]} 44. f4 {[%clk 0:00:15.3]} 44... g6
{[%clk 0:00:05.9]} 45. h3 {[%clk 0:00:14.8]} 45... h5 {[%clk 0:00:06.1]} 46. h4
{[%clk 0:00:14.8]} 1-0

[Event "*** Titled Tuesday Blitz"]
[Site "Chess.com"]
[Date "2021.03.02"]
[Round "6"]
[White "dhaessel"]
[Black "GMJustin"]
[Result "0-1"]
[WhiteElo "1951"]
[BlackElo "2249"]
[TimeControl "180+1"]
[EndTime "11:07:36 PST"]
[Termination "GMJustin won on time"]

1. d4 {[%clk 0:03:00.9]} 1... d5 {[%clk 0:02:51.3]} 2. c4 {[%clk 0:03:00.4]}
2... dxc4 {[%clk 0:02:48.4]} 3. e4 {[%clk 0:02:58.9]} 3... e5 {[%clk 0:02:41]}
4. Nf3 {[%clk 0:02:54.7]} 4... exd4 {[%clk 0:02:38.1]} 5. Bxc4 {[%clk
0:02:55.1]} 5... Bb4+ {[%clk 0:02:30.1]} 6. Nbd2 {[%clk 0:02:51.6]} 6... Nc6
{[%clk 0:02:07.3]} 7. O-O {[%clk 0:02:47.7]} 7... Nf6 {[%clk 0:02:05.2]} 8. e5
{[%clk 0:02:37.9]} 8... Nd5 {[%clk 0:02:03.6]} 9. Nb3 {[%clk 0:02:09.3]} 9...
Nb6 {[%clk 0:01:55.7]} 10. Bb5 {[%clk 0:02:02.3]} 10... O-O {[%clk 0:01:48.3]}
11. Nbxd4 {[%clk 0:01:56.4]} 11... Nxd4 {[%clk 0:01:45]} 12. Nxd4 {[%clk
0:01:56.1]} 12... c6 {[%clk 0:01:41.7]} 13. Be2 {[%clk 0:01:54.8]} 13... Qd5
{[%clk 0:01:34.4]} 14. Bf4 {[%clk 0:01:49.1]} 14... Rd8 {[%clk 0:01:27.7]} 15.
Nf3 {[%clk 0:01:45]} 15... Be6 {[%clk 0:01:14.1]} 16. Qc2 {[%clk 0:01:41.4]}
16... Qc5 {[%clk 0:01:10]} 17. Qb1 {[%clk 0:01:33.6]} 17... Qf8 {[%clk
0:00:25.7]} 18. Ng5 {[%clk 0:01:25.6]} 18... g6 {[%clk 0:00:25.4]} 19. Nxe6
{[%clk 0:01:23.2]} 19... fxe6 {[%clk 0:00:26.3]} 20. Bg5 {[%clk 0:01:20]} 20...
Rd5 {[%clk 0:00:20.9]} 21. Bf6 {[%clk 0:01:14.3]} 21... Be7 {[%clk 0:00:19.4]}
22. Bg4 {[%clk 0:01:13.8]} 22... Qf7 {[%clk 0:00:17]} 23. Bxe7 {[%clk
0:01:05.2]} 23... Qxe7 {[%clk 0:00:16.8]} 24. Qe4 {[%clk 0:01:02.2]} 24... Rad8
{[%clk 0:00:16.2]} 25. Rfe1 {[%clk 0:00:56.6]} 25... Rd4 {[%clk 0:00:15.7]} 26.
Qf3 {[%clk 0:00:55.6]} 26... Nc4 {[%clk 0:00:12.4]} 27. Qh3 {[%clk 0:00:53.1]}
27... Re8 {[%clk 0:00:11.7]} 28. b3 {[%clk 0:00:48.3]} 28... Nb6 {[%clk
0:00:08.2]} 29. Rad1 {[%clk 0:00:46.2]} 29... Rd5 {[%clk 0:00:07.4]} 30. Qh6
{[%clk 0:00:34.8]} 30... Nd7 {[%clk 0:00:05.8]} 31. Qf4 {[%clk 0:00:30.4]} 31...
Rf8 {[%clk 0:00:03.7]} 32. Qe4 {[%clk 0:00:28.4]} 32... Rxe5 {[%clk 0:00:02.6]}
33. Qc2 {[%clk 0:00:17.7]} 33... Rxe1+ {[%clk 0:00:02.1]} 34. Rxe1 {[%clk
0:00:18.6]} 34... e5 {[%clk 0:00:01.4]} 35. Qc4+ {[%clk 0:00:18]} 35... Kh8
{[%clk 0:00:01.7]} 36. Qd3 {[%clk 0:00:16]} 36... Nf6 {[%clk 0:00:01.5]} 37. Bh3
{[%clk 0:00:15.2]} 37... e4 {[%clk 0:00:01.7]} 38. Qc3 {[%clk 0:00:14.5]} 38...
Re8 {[%clk 0:00:01.7]} 39. f3 {[%clk 0:00:13.6]} 39... Qe5 {[%clk 0:00:01.8]}
40. Qxe5 {[%clk 0:00:10]} 40... Rxe5 {[%clk 0:00:01.2]} 41. g3 {[%clk
0:00:06.2]} 41... Kg7 {[%clk 0:00:01.4]} 42. Bg2 {[%clk 0:00:04.9]} 42... Re8
{[%clk 0:00:01.3]} 43. fxe4 {[%clk 0:00:04.6]} 43... Ng4 {[%clk 0:00:01.7]} 44.
h3 {[%clk 0:00:03.7]} 44... Ne5 {[%clk 0:00:01.5]} 0-1

[Event "*** Titled Tuesday Blitz"]
[Site "Chess.com"]
[Date "2021.03.02"]
[Round "6"]
[White "MendozaDavid2000"]
[Black "esrosenberg"]
[Result "1-0"]
[WhiteElo "2340"]
[BlackElo "2186"]
[TimeControl "180+1"]
[EndTime "11:07:37 PST"]
[Termination "MendozaDavid2000 won by resignation"]

1. d4 {[%clk 0:03:00.9]} 1... Nf6 {[%clk 0:02:59.6]} 2. c4 {[%clk 0:03:01.2]}
2... e6 {[%clk 0:03:00]} 3. Nc3 {[%clk 0:03:00.8]} 3... Bb4 {[%clk 0:03:00.5]}
4. Qc2 {[%clk 0:03:00.8]} 4... O-O {[%clk 0:03:00]} 5. a3 {[%clk 0:03:01.1]}
5... Bxc3+ {[%clk 0:03:00.4]} 6. Qxc3 {[%clk 0:03:01.9]} 6... b5 {[%clk
0:03:01.1]} 7. cxb5 {[%clk 0:03:01.1]} 7... c6 {[%clk 0:03:01.7]} 8. bxc6 {[%clk
0:03:00]} 8... Nxc6 {[%clk 0:03:01.8]} 9. Bg5 {[%clk 0:03:00.6]} 9... Bb7 {[%clk
0:03:01.5]} 10. e3 {[%clk 0:02:58.3]} 10... Rc8 {[%clk 0:03:01.6]} 11. Nf3
{[%clk 0:02:31.6]} 11... Ne5 {[%clk 0:02:45.3]} 12. Qd2 {[%clk 0:02:28.4]} 12...
Nxf3+ {[%clk 0:02:33.8]} 13. gxf3 {[%clk 0:02:29.3]} 13... Bxf3 {[%clk 0:02:18]}
14. Rg1 {[%clk 0:02:29.1]} 14... Kh8 {[%clk 0:01:55.1]} 15. Bd3 {[%clk
0:02:19.2]} 15... d5 {[%clk 0:01:26.6]} 16. Rg3 {[%clk 0:02:12]} 16... Be4
{[%clk 0:01:22.4]} 17. Bxe4 {[%clk 0:02:05.5]} 17... Nxe4 {[%clk 0:01:11.6]} 18.
Bxd8 {[%clk 0:01:57.4]} 18... Nxd2 {[%clk 0:01:11.9]} 19. Be7 {[%clk 0:01:56.1]}
19... Rfe8 {[%clk 0:01:01.6]} 20. Kxd2 {[%clk 0:01:29.5]} 20... Rxe7 {[%clk
0:01:01.7]} 21. Rgg1 {[%clk 0:01:27.5]} 21... Rb7 {[%clk 0:00:57.7]} 22. b4
{[%clk 0:01:25.4]} 22... a5 {[%clk 0:00:55.9]} 23. Rgc1 {[%clk 0:01:25.1]} 23...
Rcb8 {[%clk 0:00:48.6]} 24. bxa5 {[%clk 0:01:14.7]} 24... h5 {[%clk 0:00:48.5]}
25. Ra2 {[%clk 0:01:12.1]} 25... Ra8 {[%clk 0:00:45]} 26. Rc5 {[%clk 0:01:10.2]}
26... Rba7 {[%clk 0:00:45.2]} 27. a4 {[%clk 0:01:07.9]} 27... Rxa5 {[%clk
0:00:45.1]} 28. Rxa5 {[%clk 0:01:07.9]} 28... Rxa5 {[%clk 0:00:45.1]} 29. Kc3
{[%clk 0:01:08.5]} 29... g5 {[%clk 0:00:39.6]} 30. Kb4 {[%clk 0:01:08.6]} 30...
Ra8 {[%clk 0:00:40.1]} 31. a5 {[%clk 0:01:06.9]} 31... f5 {[%clk 0:00:28.5]} 32.
Kc5 {[%clk 0:01:04.6]} 32... f4 {[%clk 0:00:21.6]} 33. exf4 {[%clk 0:01:01.7]}
33... g4 {[%clk 0:00:22]} 34. a6 {[%clk 0:00:59.7]} 34... Kg7 {[%clk 0:00:17.7]}
35. a7 {[%clk 0:00:30.3]} 35... Kf6 {[%clk 0:00:16.8]} 36. Kc6 {[%clk
0:00:30.5]} 36... Kf5 {[%clk 0:00:16.5]} 37. Kb7 {[%clk 0:00:31]} 37... Rxa7+
{[%clk 0:00:17.1]} 38. Rxa7 {[%clk 0:00:28.7]} 38... Kxf4 {[%clk 0:00:17.6]} 39.
Kc6 {[%clk 0:00:27.9]} 39... Kf3 {[%clk 0:00:13.5]} 40. Ra2 {[%clk 0:00:27.9]}
40... Ke4 {[%clk 0:00:11.8]} 41. Rd2 {[%clk 0:00:25.5]} 41... h4 {[%clk
0:00:10.2]} 42. Kd6 {[%clk 0:00:25.6]} 42... Kf5 {[%clk 0:00:10.6]} 43. Re2
{[%clk 0:00:25.3]} 43... Kf4 {[%clk 0:00:09.2]} 44. Kxe6 {[%clk 0:00:25.1]}
44... Kf3 {[%clk 0:00:09.7]} 45. Rd2 {[%clk 0:00:23.4]} 45... Kg2 {[%clk
0:00:08.7]} 46. Kxd5 {[%clk 0:00:21.3]} 46... h3 {[%clk 0:00:06.8]} 47. Ke4
{[%clk 0:00:20.4]} 47... Kxh2 {[%clk 0:00:06.4]} 48. f3+ {[%clk 0:00:20.8]}
48... Kg3 {[%clk 0:00:06]} 49. fxg4 {[%clk 0:00:21]} 49... Kxg4 {[%clk
0:00:06.2]} 50. d5 {[%clk 0:00:20.9]} 50... Kg3 {[%clk 0:00:05.7]} 51. d6 {[%clk
0:00:21.1]} 51... h2 {[%clk 0:00:05.8]} 52. Rxh2 {[%clk 0:00:21.6]} 1-0

[Event "*** Titled Tuesday Blitz"]
[Site "Chess.com"]
[Date "2021.03.02"]
[Round "6"]
[White "nicolevalladar"]
[Black "mirochka"]
[Result "1-0"]
[WhiteElo "1854"]
[BlackElo "2227"]
[TimeControl "180+1"]
[EndTime "11:07:37 PST"]
[Termination "nicolevalladar won on time"]

1. e4 {[%clk 0:03:00.9]} 1... c5 {[%clk 0:02:20.7]} 2. Nc3 {[%clk 0:02:59.9]}
2... Nc6 {[%clk 0:02:19]} 3. g3 {[%clk 0:02:58.8]} 3... g6 {[%clk 0:02:17.6]} 4.
Bg2 {[%clk 0:02:58.8]} 4... Bg7 {[%clk 0:02:18.2]} 5. d3 {[%clk 0:02:58.7]} 5...
e6 {[%clk 0:02:15.3]} 6. Be3 {[%clk 0:02:57.4]} 6... Nd4 {[%clk 0:02:14.6]} 7.
Qd2 {[%clk 0:02:54.3]} 7... Ne7 {[%clk 0:02:12.6]} 8. Nce2 {[%clk 0:02:51.2]}
8... d6 {[%clk 0:01:22]} 9. c3 {[%clk 0:02:47.4]} 9... Nxe2 {[%clk 0:01:21.1]}
10. Nxe2 {[%clk 0:02:48.3]} 10... Rb8 {[%clk 0:01:13.4]} 11. O-O {[%clk
0:02:36.5]} 11... d5 {[%clk 0:01:13.3]} 12. Bxc5 {[%clk 0:02:29.9]} 12... dxe4
{[%clk 0:01:00.2]} 13. Bxe7 {[%clk 0:02:21.6]} 13... Qxe7 {[%clk 0:00:58.9]} 14.
Bxe4 {[%clk 0:02:21.6]} 14... O-O {[%clk 0:00:58.1]} 15. Rac1 {[%clk 0:02:15.3]}
15... e5 {[%clk 0:00:52.3]} 16. Bg2 {[%clk 0:02:05.2]} 16... f5 {[%clk 0:00:43]}
17. f4 {[%clk 0:02:01.6]} 17... Be6 {[%clk 0:00:22.3]} 18. fxe5 {[%clk
0:01:57.3]} 18... Bxe5 {[%clk 0:00:21.2]} 19. Nf4 {[%clk 0:01:56.5]} 19... Bf7
{[%clk 0:00:19.5]} 20. Nd5 {[%clk 0:01:50.6]} 20... Qd6 {[%clk 0:00:16.4]} 21.
Nf4 {[%clk 0:01:43.8]} 21... Rfd8 {[%clk 0:00:14.9]} 22. d4 {[%clk 0:01:41.9]}
22... Bf6 {[%clk 0:00:14.1]} 23. Rce1 {[%clk 0:01:38.6]} 23... Bxa2 {[%clk
0:00:13.6]} 24. Re3 {[%clk 0:01:21.2]} 24... Bc4 {[%clk 0:00:13.6]} 25. Rfe1
{[%clk 0:01:19.6]} 25... a5 {[%clk 0:00:14.1]} 26. d5 {[%clk 0:01:13.6]} 26...
a4 {[%clk 0:00:13.6]} 27. Kh1 {[%clk 0:01:06.9]} 27... b5 {[%clk 0:00:12.3]} 28.
Re6 {[%clk 0:01:04.5]} 28... Qf8 {[%clk 0:00:12.3]} 29. h4 {[%clk 0:00:57.5]}
29... b4 {[%clk 0:00:10.3]} 30. cxb4 {[%clk 0:00:54.2]} 30... Rxb4 {[%clk
0:00:09.2]} 31. Rc1 {[%clk 0:00:51.1]} 31... Rxb2 {[%clk 0:00:08.7]} 32. Qe3
{[%clk 0:00:40.7]} 32... Bb3 {[%clk 0:00:08.5]} 33. Rcc6 {[%clk 0:00:34.5]}
33... Bg7 {[%clk 0:00:07.2]} 34. Re7 {[%clk 0:00:26.2]} 34... a3 {[%clk
0:00:07.1]} 35. Qe6+ {[%clk 0:00:25.3]} 35... Kh8 {[%clk 0:00:06.6]} 36. Rcc7
{[%clk 0:00:23.9]} 36... a2 {[%clk 0:00:03.7]} 37. Rxg7 {[%clk 0:00:21.3]} 37...
a1=Q+ {[%clk 0:00:03.2]} 38. Kh2 {[%clk 0:00:19.9]} 38... Rxg2+ {[%clk
0:00:03.1]} 39. Kxg2 {[%clk 0:00:17]} 39... Qb2+ {[%clk 0:00:03.7]} 40. Kh3
{[%clk 0:00:15.3]} 40... Qbxg7 {[%clk 0:00:03.6]} 41. Rxg7 {[%clk 0:00:14]}
41... Qxg7 {[%clk 0:00:04.3]} 42. Qb6 {[%clk 0:00:11]} 42... Qe7 {[%clk
0:00:02.5]} 43. Qxb3 {[%clk 0:00:09.7]} 43... Qe5 {[%clk 0:00:01.3]} 44. d6
{[%clk 0:00:07.5]} 1-0

[Event "*** Titled Tuesday Blitz"]
[Site "Chess.com"]
[Date "2021.03.02"]
[Round "6"]
[White "Aslanov_Umid"]
[Black "Andrakhanova"]
[Result "0-1"]
[WhiteElo "2402"]
[BlackElo "2278"]
[TimeControl "180+1"]
[EndTime "11:07:38 PST"]
[Termination "Andrakhanova won on time"]

1. e4 {[%clk 0:03:00.9]} 1... c5 {[%clk 0:02:58.6]} 2. Nf3 {[%clk 0:03:01.1]}
2... e6 {[%clk 0:02:58.3]} 3. d4 {[%clk 0:03:01.5]} 3... cxd4 {[%clk 0:02:59.2]}
4. Nxd4 {[%clk 0:03:02.4]} 4... Nf6 {[%clk 0:02:59.4]} 5. Nc3 {[%clk 0:03:01.7]}
5... Nc6 {[%clk 0:02:59.6]} 6. Ndb5 {[%clk 0:02:57.6]} 6... d6 {[%clk
0:02:56.3]} 7. Bf4 {[%clk 0:02:56]} 7... e5 {[%clk 0:02:56.1]} 8. Bg5 {[%clk
0:02:56.5]} 8... a6 {[%clk 0:02:56.4]} 9. Na3 {[%clk 0:02:57]} 9... b5 {[%clk
0:02:56.5]} 10. Nd5 {[%clk 0:02:57.4]} 10... Be7 {[%clk 0:02:56.9]} 11. Bxf6
{[%clk 0:02:57.6]} 11... Bxf6 {[%clk 0:02:57.8]} 12. c3 {[%clk 0:02:58]} 12...
O-O {[%clk 0:02:56.8]} 13. Nc2 {[%clk 0:02:57.4]} 13... Bg5 {[%clk 0:02:57]} 14.
h4 {[%clk 0:02:57.1]} 14... Bh6 {[%clk 0:02:48.6]} 15. a4 {[%clk 0:02:56.9]}
15... bxa4 {[%clk 0:02:47.7]} 16. Rxa4 {[%clk 0:02:57.8]} 16... a5 {[%clk
0:02:48.6]} 17. Bc4 {[%clk 0:02:57.5]} 17... Rb8 {[%clk 0:02:47.4]} 18. b3
{[%clk 0:02:56.9]} 18... Kh8 {[%clk 0:02:47.4]} 19. Nce3 {[%clk 0:02:51]} 19...
f5 {[%clk 0:02:30.2]} 20. exf5 {[%clk 0:02:49.1]} 20... Bxf5 {[%clk 0:02:31.1]}
21. Nxf5 {[%clk 0:02:39.3]} 21... Rxf5 {[%clk 0:02:32]} 22. g4 {[%clk
0:02:39.3]} 22... Rf8 {[%clk 0:02:18.2]} 23. g5 {[%clk 0:02:38.6]} 23... Bxg5
{[%clk 0:02:12.9]} 24. hxg5 {[%clk 0:02:39.5]} 24... Qxg5 {[%clk 0:02:13.7]} 25.
Ne3 {[%clk 0:02:27.2]} 25... Qf4 {[%clk 0:01:31.9]} 26. Qe2 {[%clk 0:02:09.8]}
26... e4 {[%clk 0:01:25.5]} 27. Bd5 {[%clk 0:01:48.2]} 27... Ne5 {[%clk
0:01:15.2]} 28. Bxe4 {[%clk 0:00:39.4]} 28... h6 {[%clk 0:01:14.5]} 29. Rg1
{[%clk 0:00:25.9]} 29... Rxb3 {[%clk 0:01:06.1]} 30. Ra1 {[%clk 0:00:20.1]}
30... Qxe4 {[%clk 0:01:02.1]} 31. Rd1 {[%clk 0:00:18.9]} 31... Nf3+ {[%clk
0:00:58.5]} 32. Kf1 {[%clk 0:00:17.7]} 32... Nxg1 {[%clk 0:00:56.7]} 33. Kxg1
{[%clk 0:00:18.6]} 33... Rxc3 {[%clk 0:00:55.4]} 34. Qd2 {[%clk 0:00:16.2]}
34... Qg6+ {[%clk 0:00:39.6]} 35. Kf1 {[%clk 0:00:15.3]} 35... Rc6 {[%clk
0:00:32.8]} 36. Qd5 {[%clk 0:00:14.7]} 36... Rc5 {[%clk 0:00:26.2]} 37. Qd4
{[%clk 0:00:11.9]} 37... Rg5 {[%clk 0:00:23.5]} 38. Ke2 {[%clk 0:00:07]} 38...
Qh5+ {[%clk 0:00:19.8]} 39. Kd2 {[%clk 0:00:04.4]} 39... Rxf2+ {[%clk
0:00:19.6]} 40. Kd3 {[%clk 0:00:04.2]} 40... Rf3 {[%clk 0:00:17.9]} 41. Rb1
{[%clk 0:00:03.4]} 41... Qh3 {[%clk 0:00:16]} 0-1